{"text_format":"1","workbook":"xlsx","n_sheets":2,"sheets":["Staff","How to"],"not_rendered":{"charts":0,"images":2,"macros":1,"external_links":0,"defined_names":1,"comments":0,"pivot_tables":0},"unopened":[],"bounds":{"document_bytes":16777216,"sheet_cells":100000,"rows_first":2000,"rows_last":500,"rows_between":2000,"halvings":0,"cell_chars":16384,"cell_head_chars":4096},"cells_cut":0,"cells_raw":0,"read":"whole","date_system":"1900"}

{"sheet":"Staff","index":0,"n_rows":106,"n_cols":36,"rows_kept":106,"cut":false,"hidden":false,"merged":[[105,12,105,15],[105,10,105,11],[0,3,0,11]]}
[null,null,null,"              STAFF",null,null,null,null,null,null,null,null,null,null,"%"]
[{"$f":"IF(M2=\"Y\",1,0)","v":0},{"$f":"IF(M2=\"N\",1,0)","v":0},{"$f":"IF(M2=\"A\",1,0)","v":0},"Staff 1",null,null,{"$f":"IF(D2<>\"\",G1+1,\"\")","v":1},"Section 1",null,null,null,null,"X",{"$f":"IF(M2<>0,1,0)","v":1},80,{"$f":"IF(D2<>0,1,0)","v":1},{"$f":"SUM(N2:N101)","v":55},{"$f":"AND(O2<10,O2>0)","v":false},{"$f":"AND(O2<20,O2>9)","v":false},{"$f":"AND(O2<30,O2>19)","v":false},{"$f":"AND(O2<40,O2>29)","v":false},{"$f":"AND(O2<50,O2>39)","v":false},{"$f":"AND(O2<60,O2>49)","v":false},{"$f":"AND(O2<70,O2>59)","v":false},{"$f":"AND(O2<80,O2>69)","v":false},{"$f":"AND(O2<90,O2>79)","v":true},{"$f":"IF(O2>89,1,0)","v":0},{"$f":"IF(R2=FALSE,0,1)","v":0},{"$f":"IF(S2=FALSE,0,1)","v":0},{"$f":"IF(T2=FALSE,0,1)","v":0},0,0,0,0,0,1]
[{"$f":"IF(M3=\"Y\",1,0)","v":0},{"$f":"IF(M3=\"N\",1,0)","v":0},{"$f":"IF(M3=\"A\",1,0)","v":0},"Staff 10",null,null,2,"Section 1",null,null,null,null,"X",1,80,1,{"$f":"SUM(P2:P101)-SUM(N2:N101)","v":25},{"$f":"AND(O3<10,O3>0)","v":false},{"$f":"AND(O3<20,O3>9)","v":false},{"$f":"AND(O3<30,O3>19)","v":false},{"$f":"AND(O3<40,O3>29)","v":false},{"$f":"AND(O3<50,O3>39)","v":false},{"$f":"AND(O3<60,O3>49)","v":false},{"$f":"AND(O3<70,O3>59)","v":false},{"$f":"AND(O3<80,O3>69)","v":false},{"$f":"AND(O3<90,O3>79)","v":true},{"$f":"IF(O3>89,1,0)","v":0},{"$f":"IF(R3=FALSE,0,1)","v":0},{"$f":"IF(S3=FALSE,0,1)","v":0},0,0,0,0,0,0,1]
[0,0,0,"Staff 11",null,null,3,"Section 1",null,null,null,null,"X",1,80,1,"↓",false,false,false,false,false,false,false,false,true,0,0,0,0,0,0,0,0,0,1]
[0,0,0,"Staff 12",null,null,4,"Section 1",null,null,null,null,"X",1,50,1,{"$f":"Q2+Q3","v":80},false,false,false,false,false,true,false,false,false,0,0,0,0,0,0,1,0,0,0]
[0,0,0,"Staff 13",null,null,5,"Section 1",null,null,null,null,"X",1,50,1,null,false,false,false,false,false,true,false,false,false,0,0,0,0,0,0,1,0,0,0]
[0,0,0,"Staff 14",null,null,6,"Section 1",null,null,null,null,"X",1,80,1,"Eq.=",false,false,false,false,false,false,false,false,true,0,0,0,0,0,0,0,0,0,1]
[0,0,0,"Staff 15",null,null,7,"Section 1",null,null,null,null,"X",1,100,1,{"$f":"(SUM(O2:O101)/100)","v":58.9},false,false,false,false,false,false,false,false,false,1,0,0,0,0,0,0,0,0,0]
[0,0,0,"Staff 16",null,null,8,"Section 1",null,null,null,null,"X",1,80,1,"M%=",false,false,false,false,false,false,false,false,true,0,0,0,0,0,0,0,0,0,1]
[0,0,0,"Staff 17",null,null,9,"Section 1",null,null,null,null,"X",1,100,1,{"$f":"SUM(O2:O101)/Q5","v":73.625},false,false,false,false,false,false,false,false,false,1,0,0,0,0,0,0,0,0,0]
[0,0,0,"Staff 18",null,null,10,"Section 1",null,null,null,null,"X",1,80,1,null,false,false,false,false,false,false,false,false,true,0,0,0,0,0,0,0,0,0,1]
[0,0,0,"Staff 19",null,null,11,"Section 1",null,null,null,null,"X",1,80,1,"O=",false,false,false,false,false,false,false,false,true,0,0,0,0,0,0,0,0,0,1]
[0,0,0,"Staff 2",null,null,12,"Section 1",null,null,null,null,"X",1,100,1,90,false,false,false,false,false,false,false,false,false,1,0,0,0,0,0,0,0,0,0]
[0,0,0,"Staff 20",null,null,13,"Section 1",null,null,null,null,"X",1,80,1,"D%=",false,false,false,false,false,false,false,false,true,0,0,0,0,0,0,0,0,0,1]
[0,0,0,"Staff 21",null,null,14,"Section 1",null,null,null,null,"X",1,50,1,{"$f":"IF(Q5<Q13,100-((Q5/Q13)*100),((Q5/Q13)*100)-100)","v":11.111111111111114},false,false,false,false,false,true,false,false,false,0,0,0,0,0,0,1,0,0,0]
[0,0,0,"Staff 22",null,null,15,"Section 1",null,null,null,null,"X",1,80,1,null,false,false,false,false,false,false,false,false,true,0,0,0,0,0,0,0,0,0,1]
[0,0,0,"Staff 23",null,null,16,"Section 1",null,null,null,null,"X",1,60,1,"Y=",false,false,false,false,false,false,true,false,false,0,0,0,0,0,0,0,1,0,0]
[0,0,0,"Staff 24",null,null,17,"Section 1",null,null,null,null,"X",1,80,1,{"$f":"SUM(A2:A101)","v":0},false,false,false,false,false,false,false,false,true,0,0,0,0,0,0,0,{"$f":"IF(X18=FALSE,0,1)","v":0},0,1]
[0,0,0,"Staff 25",null,null,18,"Section 1",null,null,null,null,"X",1,100,1,"%=",false,false,false,false,false,false,false,false,false,1,0,0,0,0,0,0,0,0,0]
[0,0,0,"Staff 26",null,null,19,"Section 1",null,null,null,null,"X",1,80,1,{"$f":"(Q18/Q5)*100","v":0},false,false,false,false,false,false,false,false,true,0,0,0,0,0,0,0,0,0,1]
[0,0,0,"Staff 27",null,null,20,"Section 1",null,null,null,null,"X",1,50,1,null,false,false,false,false,false,true,false,false,false,0,0,0,0,0,0,1,0,0,0]
[0,0,0,"Staff 28",null,null,21,"Section 1",null,null,null,null,"X",1,100,1,"N=",false,false,false,false,false,false,false,false,false,1,0,0,0,0,0,0,0,0,0]
[0,0,0,"Staff 29",null,null,22,"Section 1",null,null,null,null,"X",1,80,1,{"$f":"SUM(B2:B101)","v":0},false,false,false,false,false,false,false,false,true,0,0,0,0,0,0,0,0,0,1]
[0,0,0,"Staff 3",null,null,23,"Section 1",null,null,null,null,null,0,80,1,"%=",false,false,false,false,false,false,false,false,true,0,0,0,0,0,0,0,0,0,1]
[0,0,0,"Staff 30",null,null,24,"Section 1",null,null,null,null,"X",1,80,1,{"$f":"(Q23/Q5)*100","v":0},false,false,false,false,false,false,false,false,true,0,0,0,0,0,0,0,0,0,1]
[0,0,0,"Staff 31",null,null,25,"Section 1",null,null,null,null,null,0,50,1,null,false,false,false,false,false,true,false,false,false,0,0,0,0,0,0,1,0,0,0]
[0,0,0,"Staff 32",null,null,26,"Section 1",null,null,null,null,"X",1,50,1,"A=",false,false,false,false,false,true,false,false,false,0,0,0,0,0,0,1,0,0,0]
[0,0,0,"Staff 33",null,null,27,"Section 1",null,null,null,null,null,0,80,1,{"$f":"SUM(C2:C101)","v":0},false,false,false,false,false,false,false,false,true,0,0,0,0,0,0,0,0,0,1]
[0,0,0,"Staff 34",null,null,28,"Section 1",null,null,null,null,null,0,80,1,"%=",false,false,false,false,false,false,false,false,true,0,0,0,0,0,0,0,0,0,1]
[0,0,0,"Staff 35",null,null,29,"Section 1",null,null,null,null,null,0,50,1,{"$f":"(Q28/Q5)*100","v":0},false,false,false,false,false,true,false,false,false,0,0,0,0,0,0,1,0,0,0]
[0,0,0,"Staff 36",null,null,30,"Section 1",null,null,null,null,null,0,80,1,null,false,false,false,false,false,false,false,false,true,0,0,0,0,0,0,0,0,0,1]
[0,0,0,"Staff 37",null,null,31,"Section 1",null,null,null,null,"X",1,80,1,"T=",false,false,false,false,false,false,false,false,true,0,0,0,0,0,0,0,0,0,1]
[0,0,0,"Staff 38",null,null,32,"Section 1",null,null,null,null,"X",1,80,1,{"$f":"Q18+Q23+Q28","v":0},false,false,false,false,false,false,false,false,true,0,0,0,0,0,0,0,0,0,1]
[0,0,0,"Staff 39",null,null,{"$f":"IF(D34<>\"\",G33+1,\"\")","v":33},"Section 1",null,null,null,null,"X",{"$f":"IF(M34<>0,1,0)","v":1},80,{"$f":"IF(D34<>0,1,0)","v":1},"%=",false,false,false,false,false,false,false,false,true,0,0,0,0,0,0,0,0,0,1]
[0,0,0,"Staff 4",null,null,34,"Section 1",null,null,null,null,"X",1,50,1,{"$f":"(Q33/Q5)*100","v":0},false,false,false,false,false,true,false,false,false,0,0,0,0,0,0,1,0,0,0]
[0,0,0,"Staff 40",null,null,35,"Section 1",null,null,null,null,null,0,100,1,null,false,false,false,false,false,false,false,false,false,1,0,0,0,0,0,0,0,0,0]
[0,0,0,"Staff 41",null,null,36,"Section 1",null,null,null,null,"X",1,80,1,null,false,false,false,false,false,false,false,false,true,0,0,0,0,0,0,0,0,0,1]
[0,0,0,"Staff 42",null,null,37,"Section 1",null,null,null,null,null,0,80,1,null,false,false,false,false,false,false,false,false,true,0,0,0,0,0,0,0,0,0,1]
[0,0,0,"Staff 43",null,null,38,"Section 1",null,null,null,null,"X",1,80,1,null,false,false,false,false,false,false,false,false,true,0,0,0,0,0,0,0,0,0,1]
[0,0,0,"Staff 44",null,null,39,"Section 1",null,null,null,null,"X",1,100,1,null,false,false,false,false,false,false,false,false,false,1,0,0,0,0,0,0,0,0,0]
[0,0,0,"Staff 45",null,null,40,"Section 1",null,null,null,null,"X",1,80,1,null,false,false,false,false,false,false,false,false,true,0,0,0,0,0,0,0,0,0,1]
[0,0,0,"Staff 46",null,null,41,"Section 1",null,null,null,null,null,0,50,1,null,false,false,false,false,false,true,false,false,false,0,0,0,0,0,0,1,0,0,0]
[0,0,0,"Staff 47",null,null,42,"Section 1",null,null,null,null,null,0,50,1,null,false,false,false,false,false,true,false,false,false,0,0,0,0,0,0,1,0,0,0]
[0,0,0,"Staff 48",null,null,43,"Section 1",null,null,null,null,null,0,100,1,null,false,false,false,false,false,false,false,false,false,1,0,0,0,0,0,0,0,0,0]
[0,0,0,"Staff 49",null,null,44,"Section 1",null,null,null,null,null,0,50,1,null,false,false,false,false,false,true,false,false,false,0,0,0,0,0,0,1,0,0,0]
[0,0,0,"Staff 5",null,null,45,"Section 1",null,null,null,null,"X",1,80,1,null,false,false,false,false,false,false,false,false,true,0,0,0,0,0,0,0,0,0,1]
[0,0,0,"Staff 50",null,null,46,"Section 1",null,null,null,null,"X",1,100,1,null,false,false,false,false,false,false,false,false,false,1,0,0,0,0,0,0,0,0,0]
[0,0,0,"Staff 51",null,null,47,"Section 1",null,null,null,null,"X",1,60,1,null,false,false,false,false,false,false,true,false,false,0,0,0,0,0,0,0,1,0,0]
[0,0,0,"Staff 52",null,null,48,"Section 1",null,null,null,null,"X",1,60,1,null,false,false,false,false,false,false,true,false,false,0,0,0,0,0,0,0,1,0,0]
[0,0,0,"Staff 53",null,null,49,"Section 1",null,null,null,null,"X",1,50,1,null,false,false,false,false,false,true,false,false,false,0,0,0,0,0,0,1,0,0,0]
[0,0,0,"Staff 54",null,null,50,"Section 1",null,null,null,null,null,0,80,1,null,false,false,false,false,false,false,false,false,true,0,0,0,0,0,0,0,0,0,1]
[0,0,0,"Staff 55",null,null,51,"Section 1",null,null,null,null,null,0,80,1,null,false,false,false,false,false,false,false,false,true,0,0,0,0,0,0,0,0,0,1]
[0,0,0,"Staff 56",null,null,52,"Section 1",null,null,null,null,null,0,80,1,null,false,false,false,false,false,false,false,false,true,0,0,0,0,0,0,0,0,0,1]
[0,0,0,"Staff 57",null,null,53,"Section 1",null,null,null,null,"X",1,80,1,null,false,false,false,false,false,false,false,false,true,0,0,0,0,0,0,0,0,0,1]
[0,0,0,"Staff 58",null,null,54,"Section 1",null,null,null,null,"X",1,80,1,null,false,false,false,false,false,false,false,false,true,0,0,0,0,0,0,0,0,0,1]
[0,0,0,"Staff 59",null,null,55,"Section 1",null,null,null,null,"X",1,80,1,null,false,false,false,false,false,false,false,false,true,0,0,0,0,0,0,0,0,0,1]
[0,0,0,"Staff 6",null,null,56,"Section 1",null,null,null,null,"X",1,100,1,null,false,false,false,false,false,false,false,false,false,1,0,0,0,0,0,0,0,0,0]
[0,0,0,"Staff 60",null,null,57,"Section 1",null,null,null,null,"X",1,80,1,null,false,false,false,false,false,false,false,false,true,0,0,0,0,0,0,0,0,0,1]
[0,0,0,"Staff 61",null,null,58,"Section 1",null,null,null,null,"X",1,50,1,null,false,false,false,false,false,true,false,false,false,0,0,0,0,0,0,1,0,0,0]
[0,0,0,"Staff 62",null,null,59,"Section 1",null,null,null,null,null,0,100,1,null,false,false,false,false,false,false,false,false,false,1,0,0,0,0,0,0,0,0,0]
[0,0,0,"Staff 63",null,null,60,"Section 1",null,null,null,null,"X",1,80,1,null,false,false,false,false,false,false,false,false,true,0,0,0,0,0,0,0,0,0,1]
[0,0,0,"Staff 64",null,null,61,"Section 1",null,null,null,null,"X",1,80,1,null,false,false,false,false,false,false,false,false,true,0,0,0,0,0,0,{"$f":"IF(W62=FALSE,0,1)","v":0},0,0,1]
[0,0,0,"Staff 65",null,null,62,"Section 1",null,null,null,null,"X",1,80,1,null,false,false,false,false,false,false,false,false,true,0,0,0,0,0,0,0,0,0,1]
[0,0,0,"Staff 66",null,null,63,"Section 1",null,null,null,null,null,0,50,1,null,false,false,false,false,false,true,false,false,false,0,0,0,0,0,0,1,0,0,0]
[0,0,0,"Staff 67",null,null,64,"Section 1",null,null,null,null,"X",1,50,1,null,false,false,false,false,false,true,false,false,false,0,0,0,0,0,0,1,0,0,0]
[0,0,0,"Staff 68",null,null,{"$f":"IF(D66<>\"\",G65+1,\"\")","v":65},"Section 1",null,null,null,null,"X",{"$f":"IF(M66<>0,1,0)","v":1},80,{"$f":"IF(D66<>0,1,0)","v":1},null,false,false,false,false,false,false,false,false,true,0,0,0,0,0,0,0,0,0,1]
[{"$f":"IF(M67=\"Y\",1,0)","v":0},{"$f":"IF(M67=\"N\",1,0)","v":0},{"$f":"IF(M67=\"A\",1,0)","v":0},"Staff 69",null,null,66,"Section 1",null,null,null,null,"X",1,80,1,null,{"$f":"AND(O67<10,O67>0)","v":false},{"$f":"AND(O67<20,O67>9)","v":false},{"$f":"AND(O67<30,O67>19)","v":false},{"$f":"AND(O67<40,O67>29)","v":false},{"$f":"AND(O67<50,O67>39)","v":false},{"$f":"AND(O67<60,O67>49)","v":false},{"$f":"AND(O67<70,O67>59)","v":false},{"$f":"AND(O67<80,O67>69)","v":false},{"$f":"AND(O67<90,O67>79)","v":true},{"$f":"IF(O67>89,1,0)","v":0},{"$f":"IF(R67=FALSE,0,1)","v":0},{"$f":"IF(S67=FALSE,0,1)","v":0},0,0,0,0,0,0,1]
[0,0,0,"Staff 7",null,null,67,"Section 1",null,null,null,null,null,0,80,1,null,false,false,false,false,false,false,false,false,true,0,0,0,0,0,0,0,0,0,1]
[0,0,0,"Staff 70",null,null,68,"Section 1",null,null,null,null,null,0,80,1,null,false,false,false,false,false,false,false,false,true,0,0,0,0,0,0,0,0,0,1]
[0,0,0,"Staff 71",null,null,69,"Section 1",null,null,null,null,null,0,80,1,null,false,false,false,false,false,false,false,false,true,0,0,0,0,0,0,0,0,0,1]
[0,0,0,"Staff 72",null,null,70,"Section 1",null,null,null,null,"X",1,80,1,null,false,false,false,false,false,false,false,false,true,0,0,0,0,0,0,0,0,0,1]
[0,0,0,"Staff 73",null,null,71,"Section 1",null,null,null,null,"X",1,50,1,null,false,false,false,false,false,true,false,false,false,0,0,0,0,0,0,1,0,0,0]
[0,0,0,"Staff 74",null,null,72,"Section 1",null,null,null,null,"X",1,80,1,null,false,false,false,false,false,false,false,false,true,0,0,0,0,0,0,0,0,0,1]
[0,0,0,"Staff 75",null,null,73,"Section 1",null,null,null,null,null,0,60,1,null,false,false,false,false,false,false,true,false,false,0,0,0,0,0,0,0,1,0,0]
[0,0,0,"Staff 76",null,null,74,"Section 1",null,null,null,null,null,0,80,1,null,false,false,false,false,false,false,false,false,true,0,0,0,0,0,0,0,0,0,1]
[0,0,0,"Staff 77",null,null,75,"Section 1",null,null,null,null,"X",1,90,1,null,false,false,false,false,false,false,false,false,false,1,0,0,0,0,0,0,0,0,0]
[0,0,0,"Staff 78",null,null,76,"Section 1",null,null,null,null,"X",1,40,1,null,false,false,false,false,true,false,false,false,false,0,0,0,0,0,1,0,0,0,0]
[0,0,0,"Staff 79",null,null,77,"Section 1",null,null,null,null,null,0,50,1,null,false,false,false,false,false,true,false,false,false,0,0,0,0,0,0,1,0,0,0]
[0,0,0,"Staff 8",null,null,78,"Section 1",null,null,null,null,null,0,50,1,null,false,false,false,false,false,true,false,false,false,0,0,0,0,0,0,1,0,0,0]
[0,0,0,"Staff 80",null,null,79,"Section 1",null,null,null,null,null,0,30,1,null,false,false,false,true,false,false,false,false,false,0,0,0,0,1,0,0,0,0,0]
[0,0,0,"Staff 9",null,null,80,"Section 1",null,null,null,null,"X",1,50,1,null,false,false,false,false,false,true,false,false,false,0,0,0,0,0,0,1,0,0,0]
[0,0,0,null,null,null,"",null,null,null,null,null,null,0,null,0,null,false,false,false,false,false,false,false,false,false,0,0,0,0,0,0,0,0,0,0]
[0,0,0,null,null,null,"",null,null,null,null,null,null,0,null,0,null,false,false,false,false,false,false,false,false,false,0,0,0,0,0,0,0,0,0,0]
[0,0,0,null,null,null,"",null,null,null,null,null,null,0,null,0,null,false,false,false,false,false,false,false,false,false,0,0,0,0,0,0,0,0,0,0]
[0,0,0,null,null,null,"",null,null,null,null,null,null,0,null,0,null,false,false,false,false,false,false,false,false,false,0,0,0,0,0,0,0,0,0,0]
[0,0,0,null,null,null,"",null,null,null,null,null,null,0,null,0,null,false,false,false,false,false,false,false,false,false,0,0,0,0,0,0,0,0,0,0]
[0,0,0,null,null,null,"",null,null,null,null,null,null,0,null,0,null,false,false,false,false,false,false,false,false,false,0,0,0,0,0,0,0,0,0,0]
[0,0,0,null,null,null,"",null,null,null,null,null,null,0,null,0,null,false,false,false,false,false,false,false,false,false,0,0,0,0,0,0,0,0,0,0]
[0,0,0,null,null,null,"",null,null,null,null,null,null,0,null,0,null,false,false,false,false,false,false,false,false,false,0,0,0,0,0,0,0,0,0,0]
[0,0,0,null,null,null,"",null,null,null,null,null,null,0,null,0,null,false,false,false,false,false,false,false,false,false,0,0,0,0,0,0,0,0,0,0]
[0,0,0,null,null,null,"",null,null,null,null,null,null,0,null,0,null,false,false,false,false,false,false,false,false,false,0,0,0,0,0,0,0,0,0,0]
[0,0,0,null,null,null,"",null,null,null,null,null,null,0,null,0,null,false,false,false,false,false,false,false,false,false,0,0,0,0,0,0,0,0,0,0]
[0,0,0,null,null,null,"",null,null,null,null,null,null,0,null,0,null,false,false,false,false,false,false,false,false,false,0,0,0,0,0,0,0,0,0,0]
[0,0,0,null,null,null,"",null,null,null,null,null,null,0,null,0,null,false,false,false,false,false,false,false,false,false,0,0,0,0,0,0,0,0,0,0]
[0,0,0,null,null,null,"",null,null,null,null,null,null,0,null,0,null,false,false,false,false,false,false,false,false,false,0,0,0,0,0,0,0,0,0,0]
[0,0,0,null,null,null,"",null,null,null,null,null,null,0,null,0,null,false,false,false,false,false,false,false,false,false,0,0,0,0,0,0,0,0,0,0]
[0,0,0,null,null,null,"",null,null,null,null,null,null,0,null,0,null,false,false,false,false,false,false,false,false,false,0,0,0,0,0,0,0,0,0,0]
[0,0,0,null,null,null,"",null,null,null,null,null,null,{"$f":"IF(M98<>0,1,0)","v":0},null,0,null,false,false,false,false,false,false,false,false,false,0,0,0,0,0,0,0,0,0,0]
[0,0,0,null,null,null,"",null,null,null,null,null,null,0,null,0,null,false,false,false,false,false,false,false,false,false,0,0,0,0,0,0,0,0,0,0]
[0,0,0,null,null,null,"",null,null,null,null,null,null,0,null,0,null,false,false,false,false,false,false,false,false,false,0,0,0,0,0,0,0,0,0,0]
[0,0,0,null,null,null,"",null,null,null,null,null,null,0,null,0,null,false,false,false,false,false,false,false,false,false,0,0,0,0,0,0,0,0,0,0]
[]
[null,null,null,null,"0-9 %: ",{"$f":"SUM(AB2:AB101)","v":0},null,"40-49 %: ",{"$f":"SUM(AF2:AF101)","v":1},null,"80-89 %: ",{"$f":"SUM(AJ2:AJ101)","v":43}]
[null,null,null,null,"10-19 %: ",{"$f":"SUM(AC2:AC101)","v":0},null,"50-59 %: ",{"$f":"SUM(AG2:AG101)","v":19},null,"90-100 %: ",{"$f":"SUM(AA2:AA101)","v":12}]
[null,null,null,null,"20-29 %: ",{"$f":"SUM(AD2:AD101)","v":0},null,"60-69 %: ",{"$f":"SUM(AH2:AH101)","v":4}]
[null,null,null,null,"30-39 %: ",{"$f":"SUM(AE2:AE101)","v":1},null,"70-79 %: ",{"$f":"SUM(AI2:AI101)","v":0},null,"O = start survey:",null,"2015-07-02"]

{"sheet":"How to","index":1,"n_rows":51,"n_cols":2,"rows_kept":51,"cut":false,"hidden":false,"merged":[]}
["This app can be used in different ways."]
[]
["1. As a simple checklist."]
[]
["2. As a simple voting list."]
[]
["1. Checklist"]
[]
["Just fill in the information you want in the text spaces and if applicable check the appropriate cell"]
["(column M) with an X. The cell adjacent to the X will turn green."]
["Simultaneously the values of the cells in column Q will change. When filling a cell in column M"]
["the value in cell Q2 will increase with 1 and the cell in Q3 will decrease with 1."]
["The value in cell Q5 is determined by the number of cells you fill with characters (column D)."]
[]
["Don't worry about the macro in this sheet, it's just a quicker way to sort your list alphabetically."]
["The macro will sort data in column D to column O meaning that you will not loose your checked"]
["cells after sorting. In other words: each row should stay as it was before the sorting operation."]
["After entering data in a row you can simply hit [ctrl+s] to sort your list. The advantage here is"]
["that you can do this anywhere in your list without having to select the appropriate cells. "]
[]
["2. Voting list"]
[]
["This list will only work as a single topic voting list, not as a multiple topic list. So if you want"]
["to decide who is going to be your next CEO this isn't the right tool (unless there's only one"]
["candidate)."]
["It's quite simple: just fill in the names of your voters (column D) and if you like, any additional"]
["information in columns H to L. Then check the M cell in the same row with Y for yes, N for no"]
["and A for abstention. Excel will give you the number of voters for each category as well as the"]
["corresponding percentage. T stands for the total of all people who have voted."]
["Don't forget: to sort just hit [ctrl+s]."]
[]
["Remark:"]
[]
["You can freely delete an item from your list or add one and when you're ready just perform the  "]
["sort operation. So you won't have to start from scratch each time items change."]
[]
[]
[null,"=100 % equivalent (equivalent in fulltime workers) = sum of all individual percentages"]
[null,"                                                                                                       divised by 100"]
[null,"=mean (average working percentage per person) =  sum of all individual percentages"]
[null,"                                                                               divised by number of workers"]
[]
[]
[null,"=number of workers at the start of the survey"]
[]
[null,"=difference in percentage compared to number of workers at the start O"]
[]
[]
[]
[]
[null,"=working percentage for each member of the staff"]